bitfinex/quotes_ETHUSD_20250808
["timestamp","ask_amount","ask_price","bid_price","bid_amount"]
[1754665057304,0.002,3982.9,3982.8,6.90992363]
[1754665057475,0.002,3982.9,3982.8,10.89792363]
[1754665058093,0.002,3982.9,3982.8,6.45112363]
[1754665058303,0.6249,3982.9,3982.8,5.63639642]
[1754665058707,0.002,3982.9,3982.8,5.63639642]
[1754665058909,0.002,3982.9,3982.8,18.83216674]
[1754665059995,0.002,3982.9,3982.8,6.09519642]
[1754665060198,0.002,3982.9,3982.8,6.89570355]
[1754665060584,0.6249,3982.9,3982.8,5.63639642]
[1754665062630,0.002,3982.9,3982.8,5.63639642]
[1754665063125,0.002,3982.9,3982.8,6.09519642]
[1754665063829,0.002,3982.9,3982.8,5.63639642]
[1754665064228,0.6249,3982.9,3982.8,5.63639642]
[1754665064915,0.002,3982.9,3982.8,5.63639642]
[1754665065333,1.0698,3982.9,3982.8,5.63639642]
[1754665065622,1.0698,3982.9,3982.8,0.1256]
[1754665065820,1.0698,3982.9,3981.7,2.51148793]
[1754665065821,3.58053691,3982.9,3981.7,2.5114318]
[1754665066123,0.1256,3982.1,3981.8,2.5113847]
[1754665066323,1.0678,3982.0,3981.9,3.0]
[1754665066510,1.0678,3982.0,3981.5,0.1256]
[1754665066720,0.1256,3982.1,3981.5,0.1256]
[1754665067042,1.0678,3981.9,3981.5,0.1256]
[1754665067190,0.6229,3981.9,3981.8,2.51142699]
[1754665067619,1.0678,3981.9,3981.8,2.51142699]
[1754665067826,0.6229,3981.9,3981.5,0.1256]
[1754665068030,0.5402051,3983.2,3981.3,0.001]
[1754665068031,0.1256,3981.6,3981.3,0.001]
[1754665068201,3.985,3982.0,3981.3,0.001]
[1754665068202,0.1256,3981.4,3981.3,0.001]
[1754665068612,1.1934,3981.4,3981.3,0.001]
[1754665069815,6.09789661,3981.4,3981.3,0.001]
[1754665070020,8.60957591,3981.4,3981.3,0.001]
[1754665070330,1.56389661,3981.4,3981.3,0.001]
[1754665070515,5.1774,3981.4,3981.3,0.001]
[1754665070707,2.51193167,3981.0,3980.9,0.001]
[1754665070909,2.51193167,3981.0,3980.5,0.001]
[1754665070910,0.1256,3981.0,3980.5,0.001]
[1754665071093,3.984,3981.4,3980.5,0.001]
[1754665071094,0.1256,3980.6,3980.5,0.001]
[1754665071595,1.1934,3980.6,3980.5,0.001]
[1754665073404,5.1774,3980.6,3980.5,0.001]
[1754665075816,4.7325,3980.6,3980.5,0.001]
[1754665076003,0.756,3980.6,3980.5,0.001]
[1754665076203,1.7625689,3980.6,3980.5,0.001]
[1754665077822,1.2131,3980.6,3980.5,0.001]
[1754665078022,0.756,3980.6,3980.5,0.001]
[1754665078229,1.2131,3980.6,3980.5,0.001]
[1754665078817,4.27528409,3980.6,3980.5,0.001]
[1754665080521,4.37592609,3980.6,3980.5,0.001]
[1754665080718,5.46312582,3980.6,3980.5,0.001]
[1754665081334,5.46312582,3980.6,3979.1,0.041]
[1754665081335,15.13791205,3980.6,3979.1,0.041]
[1754665081523,2.51306795,3979.2,3979.1,0.041]
[1754665081694,6.62166795,3979.2,3979.1,0.041]
[1754665081899,5.65246563,3979.2,3979.1,0.041]
[1754665082138,8.62263358,3979.2,3979.1,0.041]
[1754665082497,8.16553358,3979.2,3979.1,0.041]
[1754665082835,4.1086,3979.2,3979.1,0.041]
[1754665083516,0.1256,3979.2,3979.1,2.55413111]
[1754665083716,4.1086,3979.2,3979.1,5.55413111]
[1754665083915,3.983,3979.2,3979.1,5.55413111]
[1754665084116,3.983,3979.2,3979.1,3.041]
[1754665084305,3.983,3979.2,3979.1,5.55413]
[1754665084507,0.1256,3979.3,3979.1,5.55413]
[1754665084717,0.1256,3979.3,3979.2,2.51306795]
[1754665084919,0.1256,3979.3,3979.2,5.98726795]
[1754665085119,0.55,3980.5,3979.7,3.0]
[1754665085120,0.6304,3980.3,3979.7,3.0]
[1754665085320,3.983,3980.2,3979.8,2.5126726]
[1754665085540,8.64586712,3980.6,3979.9,2.51261837]
[1754665085740,8.64586712,3980.6,3979.9,0.4742]
[1754665085741,3.983,3980.5,3979.9,0.4742]
[1754665085937,3.983,3980.5,3980.1,2.46247567]
[1754665086114,0.1256,3980.2,3980.1,2.46247567]
[1754665087020,0.1256,3980.3,3980.1,2.51247954]
[1754665087208,3.983,3980.2,3980.1,2.51247954]
[1754665087809,0.1256,3980.3,3980.2,2.51243656]
[1754665088011,4.1086,3980.3,3980.2,2.51243656]
[1754665088210,4.1086,3980.3,3980.2,2.98663656]
[1754665088715,6.133642,3980.6,3980.4,2.51227416]
[1754665089041,3.983,3980.5,3980.4,2.51227416]
[1754665089363,3.983,3980.5,3980.3,2.51235258]
[1754665089545,3.983,3980.5,3980.2,3.4742]
[1754665089546,6.033,3980.6,3980.4,2.51230071]
[1754665089742,3.982,3980.4,3980.3,3.0]
[1754665090412,3.982,3980.4,3980.3,5.51237343]
[1754665090810,3.982,3980.4,3980.3,3.0]
[1754665091012,6.1466,3980.4,3979.9,3.0]
[1754665091241,1.0875,3980.3,3979.9,3.0]
[1754665091539,2.51250097,3980.1,3979.4,2.51289353]
[1754665091740,6.49456583,3980.0,3979.4,2.51289353]
[1754665091945,3.982,3980.0,3979.6,2.51280224]
[1754665092139,4.6124,3980.0,3979.6,2.51280224]
[1754665092440,0.6304,3979.9,3979.7,3.0]
[1754665092741,0.6304,3979.9,3979.4,2.51292896]
[1754665092951,3.58946717,3980.4,3979.4,2.51292896]
[1754665092952,1.35952656,3982.4,3980.0,4.16]
[1754665093172,1e-08,3982.4,3982.3,18.24808198]
[1754665093444,1e-08,3982.4,3982.3,9.96631166]
[1754665093610,1e-08,3982.4,3982.3,10.19743314]
[1754665094212,1e-08,3982.5,3982.4,5.51104861]
[1754665094446,0.04,3983.4,3983.3,2.51048125]
[1754665094447,1e-08,3983.4,3983.3,2.51048125]
[1754665094608,1e-08,3983.4,3983.3,10.52670528]
[1754665094942,0.6304,3985.1,3984.2,5.50991416]
[1754665095142,0.6304,3985.1,3984.2,5.74103564]
[1754665095342,0.6304,3985.1,3984.2,5.74075548]
[1754665096112,0.6304,3985.1,3984.2,3.23084132]
[1754665096349,0.6304,3984.7,3984.2,3.23084132]
[1754665096535,2.96660323,3984.9,3984.2,3.23084132]
[1754665096880,0.6344,3984.3,3984.2,0.23084132]
[1754665097217,0.6344,3984.3,3983.8,2.51015284]
[1754665097419,0.004,3984.3,3984.1,3.0]
[1754665098039,0.004,3984.3,3983.7,2.51022489]
[1754665098235,0.004,3984.3,3983.9,3.0]
[1754665098547,0.004,3984.3,3983.5,3.0]
[1754665098759,0.6344,3984.3,3983.6,0.23032252]
[1754665098960,0.6304,3984.2,3983.7,0.23032252]
[1754665099118,0.6304,3984.2,3983.8,0.23032252]
[1754665099324,0.004,3984.3,3983.9,0.23032252]
[1754665099518,1.0875,3984.1,3984.0,0.23032252]
[1754665099841,3.59747715,3984.1,3984.0,0.23032252]
[1754665100014,1.0875,3984.1,3982.4,0.4742]
[1754665100219,1.0875,3984.1,3983.1,2.51054678]
[1754665100421,1.0875,3984.1,3983.2,0.23030607]
[1754665100661,5.42764692,3984.0,3983.3,0.23030607]
[1754665100864,2.51026345,3983.7,3983.4,0.23030607]
[1754665101042,2.51026345,3983.7,3983.5,0.23039051]
[1754665101245,2.51026345,3983.7,3982.9,5.51072828]
[1754665101246,2.51026345,3983.7,3983.6,0.23039051]
[1754665101443,2.51026345,3983.7,3983.0,0.23040584]
[1754665101762,0.6304,3983.9,3983.1,0.23040584]
[1754665101954,0.6304,3983.9,3983.5,2.51035521]
[1754665101955,0.1256,3983.9,3983.5,2.51035521]
[1754665102144,0.1256,3983.9,3983.6,0.23040584]
[1754665102345,0.1256,3983.9,3983.3,0.1256]
[1754665102346,0.1256,3983.9,3983.7,0.23040584]
[1754665102648,0.756,3983.9,3983.4,3.0]
[1754665102827,0.756,3983.9,3983.5,0.23033114]
[1754665103032,0.1256,3983.9,3983.6,0.23033114]
[1754665103257,0.1256,3983.9,3983.3,0.1256]
[1754665103258,0.6304,3983.8,3983.7,0.23033114]
[1754665103462,0.6304,3983.8,3983.5,3.0]
[1754665103642,0.6304,3983.8,3983.6,0.23022635]
[1754665103837,0.6304,3983.8,3983.3,0.1256]
[1754665104045,0.6304,3983.8,3983.4,0.23030101]
[1754665104341,0.6304,3983.8,3983.5,0.23030101]
[1754665104651,0.6304,3983.8,3983.6,0.23030101]
[1754665104855,0.1256,3983.9,3983.3,2.63605186]
[1754665105043,0.1256,3983.9,3983.4,0.23036671]
[1754665105242,0.1256,3983.9,3983.5,0.23036671]
[1754665105457,0.1256,3983.9,3983.6,0.23036671]
[1754665105634,0.1256,3983.9,3983.3,0.1256]
[1754665105635,2.51023055,3983.7,3983.3,0.1256]
[1754665105966,0.6089,3983.8,3983.4,0.23022122]
[1754665106267,0.6089,3983.8,3983.5,0.23022122]
[1754665106471,1.0584,3983.7,3981.5,0.754033]
[1754665106671,1.0584,3983.7,3980.1,2.59529009]
[1754665106672,0.55,3983.1,3981.0,0.4282]
[1754665106962,0.1256,3982.1,3981.5,0.1256]
[1754665107163,1.0584,3983.0,3981.6,2.51153537]
[1754665107372,3.987,3983.2,3981.7,1.30825354]
[1754665107532,3.989,3983.3,3982.4,2.51103847]
[1754665107733,0.004,3984.3,3983.3,2.51044943]
[1754665107935,0.1256,3984.1,3983.5,2.63593625]
[1754665108344,0.1256,3984.1,3983.6,5.51023885]
[1754665108544,0.1256,3984.1,3983.7,2.51021755]
[1754665108765,0.1256,3984.1,3983.7,2.51022287]
[1754665108962,0.004,3984.3,3983.8,3.0]
[1754665109267,0.1256,3984.2,3983.7,3.1256]
[1754665109568,0.1256,3984.2,3983.7,2.63579576]
[1754665109734,0.1256,3984.2,3983.9,3.0]
[1754665110133,0.1256,3984.2,3983.7,2.63581759]
[1754665110335,0.1256,3984.2,3983.7,2.63580975]
[1754665110570,0.6089,3984.1,3983.5,0.001]
[1754665110734,2.51016018,3983.9,3983.5,0.001]
[1754665111068,6.52118238,3983.8,3983.5,0.001]
[1754665111267,4.011,3983.8,3983.5,3.001]
[1754665111573,4.011,3983.8,3983.5,0.001]
[1754665111736,4.011,3983.8,3983.7,5.51022918]
[1754665112150,4.011,3983.8,3983.7,3.0]
[1754665112843,4.011,3984.2,3983.8,3.0]
[1754665113043,6.52091651,3984.2,3983.6,3.0]
[1754665113244,6.52091651,3984.2,3983.5,2.5113458]
[1754665113245,2.5100837,3984.0,3983.5,0.001]
[1754665113694,1.0584,3983.9,3983.5,0.001]
[1754665114037,2.51029219,3983.6,3983.5,0.001]
[1754665114343,4.011,3983.6,3983.5,0.001]
[1754665115448,4.011,3983.6,3983.5,5.51135521]
[1754665115637,4.01,3984.1,3983.9,3.0]
[1754665116042,4.01,3984.1,3983.5,0.001]
[1754665116373,0.006,3984.3,3984.2,2.50991416]
[1754665116549,0.006,3984.3,3984.2,5.50991416]
[1754665118462,0.006,3984.3,3984.2,5.74158882]
[1754665118664,0.006,3984.3,3984.2,6.56675172]
[1754665118850,0.006,3984.3,3984.2,5.74158882]
[1754665119691,0.006,3984.3,3984.2,3.23167466]
[1754665120555,1.19,3984.3,3984.2,3.23167466]
[1754665121263,3.69985116,3984.3,3984.2,0.23167466]
[1754665121464,1.19,3984.3,3984.2,0.23167466]
[1754665121771,5.56797736,3984.3,3984.2,0.23167466]
[1754665121974,0.006,3984.3,3984.2,5.74158882]
[1754665122978,0.006,3984.3,3984.2,6.16978882]
[1754665123986,0.006,3984.3,3984.2,5.74158882]
[1754665124146,0.006,3984.3,3984.2,9.74258882]
[1754665124472,0.006,3984.3,3984.2,10.98041099]
[1754665124675,0.006,3984.3,3984.2,6.97941099]
[1754665124857,0.006,3984.3,3984.2,5.74158882]
[1754665125776,0.006,3984.3,3984.2,5.50991416]
[1754665128164,0.006,3984.3,3984.2,5.63551416]
[1754665128751,0.006,3984.3,3984.2,5.50991416]
[1754665128951,0.006,3984.3,3984.2,5.63551416]
[1754665129353,0.006,3984.3,3984.2,3.1256]
[1754665129553,1.0644,3984.3,3984.2,3.0]
[1754665129749,3.57425116,3984.3,3984.2,3.0]
[1754665130005,0.006,3984.3,3983.6,4.4156]
[1754665130295,0.006,3984.3,3984.2,2.63551416]
[1754665130494,0.006,3984.3,3984.2,3.15006483]
[1754665131388,0.006,3984.3,3984.2,3.57826483]
[1754665131551,0.006,3984.3,3984.2,3.15006483]
[1754665132263,0.006,3984.3,3984.2,10.44006483]
[1754665136961,0.006,3984.3,3984.2,10.87966483]
[1754665137297,0.006,3984.3,3984.2,10.44006483]
[1754665139605,0.002,3984.7,3984.5,2.50972518]
[1754665139758,0.002,3984.7,3984.6,5.63526219]
[1754665140493,0.002,3984.7,3984.6,9.62326219]
[1754665140670,0.002,3984.7,3984.6,10.06286219]
[1754665141301,0.002,3984.7,3984.6,9.62226219]
[1754665141669,0.002,3984.7,3984.6,10.06186219]
[1754665141872,0.002,3984.7,3984.6,7.7946248]
[1754665142090,0.002,3984.7,3984.6,11.7796248]
[1754665143203,0.002,3984.7,3984.6,11.7776248]
[1754665143986,0.002,3984.7,3984.6,7.7946248]
[1754665144186,0.002,3984.7,3984.6,5.63526219]
[1754665144487,1.057,3984.7,3984.6,5.63526219]
[1754665144816,1.057,3984.7,3984.6,9.87926219]
[1754665145812,1.057,3984.7,3984.6,13.86026219]
[1754665145976,1.057,3984.7,3984.6,7.3696]
[1754665146612,1.057,3984.7,3984.6,7.244]
[1754665148415,1.057,3984.7,3984.3,0.1256]
[1754665148713,0.002,3984.7,3984.6,3.0]
[1754665149013,0.002,3984.7,3984.3,0.1256]
[1754665149216,1.055,3984.6,3984.4,3.0]
[1754665149522,1.055,3984.5,3984.3,0.1256]
[1754665149724,0.4653,3984.5,3984.4,4.244]
[1754665149938,0.4653,3984.5,3984.0,2.51002476]
[1754665150254,0.1256,3984.3,3984.1,2.50992005]
[1754665150428,1.1806,3984.3,3984.2,2.50991416]
[1754665151208,1.1806,3984.3,3984.2,3.0]
[1754665151635,1.1806,3984.3,3984.1,3.0]
[1754665151953,1.055,3984.2,3983.5,0.001]
[1754665152165,2.51022642,3983.8,3983.5,0.001]
[1754665152440,0.1256,3983.7,3983.5,0.001]
[1754665152802,1.055,3983.6,3983.5,0.001]
[1754665153818,3.56529219,3983.6,3983.5,0.001]
[1754665154644,1.055,3983.6,3983.5,0.001]
[1754665155303,5.034,3983.6,3983.5,0.001]
[1754665156506,0.51596,3984.1,3983.5,3.001]
[1754665156746,0.1256,3983.7,3983.5,0.001]
[1754665156948,5.034,3984.0,3983.8,2.51011996]
[1754665157189,5.034,3984.0,3983.7,2.51021481]
[1754665157370,4.5687,3984.0,3983.9,3.0]
[1754665157573,4.5687,3984.0,3983.6,3.0]
[1754665157776,4.5687,3984.0,3983.8,3.0]
[1754665157952,4.5687,3984.0,3983.6,3.0]
[1754665158148,5.034,3984.0,3983.8,3.0]
[1754665158368,5.034,3984.0,3983.8,2.5101658]
[1754665158564,5.034,3984.0,3983.6,5.51029146]
[1754665158565,5.034,3984.0,3983.7,2.51022041]
[1754665158768,5.034,3984.0,3983.8,3.0]
[1754665158979,5.034,3984.0,3983.6,2.51027878]
[1754665159173,3.98,3984.2,3983.8,2.51016617]
[1754665159376,5.1606,3984.2,3983.9,3.0]
[1754665159594,5.1606,3984.2,3984.0,2.50999347]
[1754665159792,5.1606,3984.2,3984.1,2.50997715]
[1754665159996,5.1606,3984.2,3984.0,2.51001655]
[1754665160194,4.5709,3984.2,3984.1,2.50997715]
[1754665160354,4.5709,3984.2,3984.0,2.51002875]
[1754665160693,4.5709,3984.2,3984.1,2.50997715]
[1754665160893,5.1606,3984.2,3984.1,2.50997715]
[1754665161256,5.1606,3984.2,3983.7,2.63577368]
[1754665161257,0.7153,3984.2,3983.7,2.63577368]
[1754665161568,4.6953,3984.2,3984.0,2.50999692]
[1754665161766,4.6953,3984.2,3983.9,3.0]
[1754665162084,1.055,3984.1,3983.9,2.51004746]
[1754665162454,0.1256,3984.2,3983.8,3.0]
[1754665162455,1.055,3984.0,3983.8,3.0]
[1754665162654,1.055,3983.9,3983.8,3.0]
[1754665163090,1.055,3983.9,3983.8,2.51016617]
[1754665163250,1.055,3983.9,3983.8,5.51016617]
[1754665163455,1.055,3983.9,3983.8,3.0]
[1754665163999,1.1806,3983.9,3983.5,0.001]
[1754665164203,0.1256,3983.8,3983.6,2.51023269]
[1754665164354,0.1256,3983.8,3983.7,5.51022918]
[1754665164550,0.1256,3983.8,3983.7,3.0]
[1754665165672,0.1256,3983.8,3983.7,5.51022918]
[1754665166289,3.979,3983.9,3983.5,2.51134587]
[1754665166585,5.1939,3983.9,3983.6,2.51027981]
[1754665166887,5.1939,3983.9,3983.5,0.001]
[1754665166888,0.6205,3983.8,3983.5,2.51133244]
[1754665167092,4.5734,3983.9,3983.5,0.001]
[1754665167093,1.0893,3983.7,3983.5,0.001]
[1754665167385,0.1256,3983.6,3983.5,0.001]
[1754665167585,1.2149,3983.6,3983.5,0.001]
[1754665169263,3.72519219,3983.6,3983.5,0.001]
[1754665170563,5.1939,3983.6,3983.5,0.001]
[1754665171081,4.7251,3983.6,3983.5,0.001]
[1754665171388,5.1939,3983.6,3983.5,0.001]
[1754665172583,7.70419219,3983.6,3983.5,0.001]
[1754665173072,5.1939,3983.6,3983.5,0.001]
[1754665173896,0.1256,3983.6,3983.5,2.51135521]
[1754665174100,0.1256,3983.6,3983.5,0.92768326]
[1754665174101,4.1046,3983.6,3983.5,0.92768326]
[1754665174296,0.6205,3984.3,3983.6,3.0]
[1754665174297,4.1046,3983.9,3983.6,3.0]
[1754665174458,3.979,3983.8,3983.5,3.43801726]
[1754665174863,3.979,3983.8,3983.6,3.0]
[1754665175197,3.979,3983.8,3983.5,3.43801726]
[1754665175198,3.979,3983.8,3983.5,0.92768326]
[1754665175384,3.979,3983.8,3983.5,0.001]
[1754665176393,3.979,3983.8,3983.6,3.0]
[1754665177114,3.979,3983.8,3983.5,3.001]
[1754665177815,3.979,3983.8,3983.6,3.0]
[1754665178019,3.979,3983.8,3983.5,3.001]
[1754665178713,1.0893,3983.7,3983.5,3.001]
[1754665178915,0.1256,3983.6,3983.5,3.001]
[1754665179098,0.7461,3983.6,3983.5,3.001]
[1754665179282,0.7461,3983.6,3983.5,0.001]
[1754665179706,0.1256,3983.6,3983.5,0.001]
[1754665180304,0.6205,3984.0,3983.7,2.51019522]
[1754665180519,4.1036,3983.9,3983.7,2.51019522]
[1754665180812,0.1256,3983.9,3983.8,2.51016617]
[1754665181113,4.1036,3983.9,3983.8,2.51016617]
[1754665181915,0.1256,3983.9,3983.8,2.51016617]
[1754665182107,4.1036,3983.9,3983.8,2.51016617]
[1754665183183,0.1256,3983.9,3983.8,2.51016617]
[1754665183421,0.002,3984.7,3984.6,2.50966219]
[1754665183717,0.002,3984.7,3984.6,9.72112325]
[1754665184184,0.002,3984.7,3984.6,10.16382325]
[1754665184489,0.002,3984.7,3984.6,11.43118028]
[1754665184811,0.002,3984.7,3984.6,11.19771922]
[1754665185613,0.002,3984.7,3984.6,10.75501922]
[1754665185915,0.002,3984.7,3984.6,10.75401922]
[1754665187491,0.002,3984.7,3984.6,11.19671922]
[1754665188021,1e-08,3984.7,3984.6,11.19671922]
[1754665188419,1e-08,3984.7,3984.6,15.44071922]
[1754665188918,1e-08,3984.7,3984.6,11.19671922]
[1754665190721,1e-08,3984.7,3984.6,7.45205035]
[1754665191218,1e-08,3984.7,3984.6,10.98535035]
[1754665191782,1e-08,3984.7,3984.6,11.42805035]
[1754665192083,0.002,3985.6,3984.6,11.42805035]
[1754665192084,0.4688,3986.8,3986.2,5.50865485]
[1754665192430,1.0893,3986.8,3986.2,5.74098598]
[1754665193321,1.0893,3986.8,3986.2,5.86658598]
[1754665193885,0.1256,3987.0,3986.2,9.84158598]
[1754665194218,0.5804,3986.8,3986.2,5.86658598]
[1754665194420,0.5804,3986.8,3986.2,8.27664236]
[1754665194895,0.5804,3986.8,3986.2,8.27580108]
[1754665195100,0.456,3986.7,3986.2,8.27580108]
[1754665195884,0.5804,3986.8,3986.2,8.27580108]
[1754665196085,0.002,3986.7,3986.2,8.27580108]
[1754665197602,0.006,3986.3,3986.2,8.27580108]
[1754665197807,1e-08,3986.4,3986.2,8.27580108]
[1754665198019,0.1296,3987.1,3987.0,5.50815149]
[1754665198020,1e-08,3987.1,3987.0,5.50815149]
[1754665198232,1e-08,3987.1,3987.0,23.22113637]
[1754665198432,1e-08,3987.1,3987.0,26.95726337]
[1754665198635,1e-08,3987.1,3987.0,6.6668798]
[1754665198941,1e-08,3987.1,3987.0,10.6418798]
[1754665199748,1e-08,3987.1,3987.0,11.6774798]
[1754665200408,0.04,3987.4,3987.0,11.6774798]
[1754665200409,0.04,3987.4,3987.3,2.50796278]
[1754665200740,1e-08,3987.4,3987.3,27.44765661]
[1754665200911,0.04,3988.4,3988.3,5.50733395]
[1754665201111,0.04,3988.4,3988.3,9.7128238]
[1754665201440,2.50733395,3988.3,3987.3,1.26786441]
[1754665201736,1.0364,3988.2,3986.6,3.974]
[1754665201940,0.1256,3987.7,3987.1,0.1256]
[1754665202155,2.5073399,3988.3,3987.5,3.0]
[1754665202353,2.5073399,3988.3,3987.2,2.73848514]
[1754665202354,2.50802644,3987.2,3986.4,3.974]
[1754665202649,2.50802644,3987.2,3987.0,2.50815149]
[1754665202650,0.5804,3987.1,3987.0,2.50815149]
[1754665202830,2.50746602,3988.1,3987.0,2.50815149]
[1754665202831,2.50697448,3988.9,3987.0,20.03892483]
[1754665203149,0.1256,3988.8,3988.3,5.50733395]
[1754665203300,1.5804,3989.1,3988.3,5.86344806]
[1754665203301,0.456,3988.9,3988.3,5.86344806]
[1754665203496,1.5804,3989.1,3988.3,9.84244806]
[1754665203946,0.6204,3988.4,3988.3,5.86344806]
[1754665204600,0.6204,3988.4,3988.3,5.63293395]
[1754665204800,0.6204,3988.4,3988.3,3.1256]
[1754665204801,1.0764,3988.4,3988.3,3.1256]
[1754665205043,1.0764,3988.4,3988.3,3.0]
[1754665205401,1.0764,3988.4,3986.1,15.21353782]
[1754665205646,0.1256,3987.5,3987.0,0.1256]
[1754665205803,1.0364,3987.4,3987.1,0.23050697]
[1754665205999,1.0364,3987.3,3987.1,0.23050697]
[1754665206334,1.162,3987.2,3987.1,0.23050697]
[1754665206701,1.0364,3987.2,3986.4,3.983]
[1754665206902,0.5804,3987.2,3987.1,2.50808858]
[1754665207132,0.5804,3987.2,3987.1,2.73897744]
[1754665207338,0.5804,3987.7,3987.4,3.0]
[1754665207502,0.1256,3987.8,3987.4,5.50789728]
[1754665207705,0.1256,3987.8,3987.6,2.50771711]
[1754665208027,0.04,3988.4,3987.7,3.0]
[1754665208228,0.706,3988.1,3987.8,2.5076373]
[1754665208402,1.0364,3988.0,3987.5,0.1256]
[1754665208610,1.0364,3988.0,3987.6,0.23073476]
[1754665208816,0.1256,3987.8,3987.5,3.0]
[1754665209120,1.0364,3987.7,3987.5,3.0]
[1754665209313,0.1256,3987.8,3987.6,0.23082869]
[1754665209834,0.1256,3987.8,3987.2,0.1256]
[1754665209835,0.26331892,3987.7,3987.2,0.1256]
[1754665210022,0.1256,3987.8,3987.3,0.23081711]
[1754665210201,0.1256,3987.4,3987.3,0.23081711]
[1754665210710,0.1256,3987.4,3987.3,3.23081711]
[1754665210711,1.162,3987.4,3987.3,3.23081711]
[1754665210909,1.162,3987.4,3987.3,0.23081711]
[1754665211309,1.162,3987.4,3987.3,19.45182775]
[1754665211310,1e-08,3987.4,3987.3,19.45182775]
[1754665211531,1e-08,3987.4,3987.3,6.74697118]
[1754665211716,1e-08,3987.4,3987.3,6.31267118]
[1754665212048,1e-08,3987.4,3987.3,10.30067118]
[1754665212453,1e-08,3987.4,3987.3,6.31267118]
[1754665212618,1e-08,3987.4,3987.3,10.30067118]
[1754665212824,1e-08,3987.4,3987.3,10.73497118]
[1754665213669,1e-08,3987.4,3987.3,10.50415407]
[1754665214167,1e-08,3987.4,3987.3,27.48944707]
[1754665214463,1e-08,3988.4,3988.3,2.50733395]
[1754665214645,1e-08,3988.4,3988.3,9.99380889]
[1754665215043,1e-08,3988.4,3988.3,6.00880889]
[1754665215259,1e-08,3988.4,3988.3,9.99280889]
[1754665216241,1e-08,3988.5,3988.4,5.50727108]
[1754665216569,1e-08,3988.5,3988.4,10.99002063]
[1754665217635,1e-08,3988.5,3988.4,7.00802063]
[1754665217835,1e-08,3988.5,3988.4,11.42432063]
[1754665218135,1e-08,3988.5,3988.4,7.44232063]
[1754665218336,1e-08,3988.5,3988.4,11.42532063]
[1754665218570,1e-08,3988.5,3988.4,7.00802063]
[1754665218787,1e-08,3988.5,3988.4,10.99002063]
[1754665218960,1e-08,3988.5,3988.1,0.1256]
[1754665218961,1.03640001,3988.5,3988.1,0.1256]
[1754665219144,1.0364,3988.4,3988.0,0.1256]
[1754665219635,1.0364,3988.3,3988.0,0.1256]
[1754665219836,1.0364,3988.2,3988.0,0.1256]
[1754665220142,1.0364,3988.2,3987.1,0.001]
[1754665220143,1.162,3988.1,3987.5,0.1256]
[1754665220333,1.0364,3988.0,3987.7,2.50767065]
[1754665220538,0.5804,3987.9,3987.7,2.50767065]
[1754665220748,0.5804,3987.8,3987.7,0.1256]
[1754665221357,0.1256,3988.3,3988.1,3.0]
[1754665221674,0.5804,3988.2,3987.7,0.1256]
[1754665221838,0.5804,3988.2,3988.1,2.50745969]
[1754665222177,0.5804,3988.2,3988.1,3.1256]
[1754665222387,0.5804,3988.2,3988.1,5.63305969]
[1754665222550,1.0,3989.1,3988.2,3.0]
[1754665222871,1.0,3989.1,3989.0,5.50689395]
[1754665223075,1.5804,3989.1,3989.0,5.50689395]
[1754665223286,1.0,3989.1,3989.0,5.50689395]
[1754665223585,1.0,3989.1,3989.0,5.63249395]
[1754665224396,1.0,3989.1,3989.0,6.84574465]
[1754665224739,1.0,3989.1,3989.0,5.63249395]
[1754665224944,2.0638,3989.1,3989.0,5.63249395]
[1754665225543,2.0638,3989.1,3989.0,3.0]
[1754665225946,2.0638,3989.1,3989.0,5.50689395]
[1754665226147,1.6026,3989.1,3989.0,5.50689395]
[1754665226941,1.0,3989.1,3989.0,5.63249395]
[1754665227477,0.4612,3989.9,3989.0,5.63249395]
[1754665227478,0.00560001,3990.4,3990.3,5.50607723]
[1754665227641,0.00560001,3990.4,3990.3,9.49407723]
[1754665228146,0.00560001,3990.4,3990.3,5.63167723]
[1754665228561,0.60820001,3990.4,3990.3,5.63167723]
[1754665228881,0.60820001,3990.4,3990.3,3.1256]
[1754665229087,1.06940001,3990.4,3990.1,0.1256]
[1754665229295,1.06940001,3990.4,3989.9,3.0]
[1754665229296,0.00560001,3990.4,3990.3,2.50607723]
[1754665229446,0.00560001,3990.4,3990.3,5.50607723]
[1754665230657,0.00560001,3990.4,3990.3,7.15759896]
[1754665231183,1e-08,3990.4,3990.3,6.70869896]
[1754665231489,1e-08,3990.4,3990.3,5.50607723]
[1754665231692,1e-08,3990.4,3990.3,9.52007723]
[1754665231856,1e-08,3990.4,3990.3,9.96897723]
[1754665232450,1e-08,3990.4,3990.3,14.21297723]
[1754665233192,1e-08,3990.4,3990.3,20.88144523]
[1754665233486,1e-08,3990.4,3990.3,14.96694376]
[1754665233666,1e-08,3990.4,3990.3,18.97994376]
[1754665233867,1e-08,3990.4,3990.3,15.16891176]
[1754665234585,1e-08,3990.4,3990.3,15.21631176]
[1754665235362,1e-08,3990.4,3990.3,11.20331176]
[1754665235575,1e-08,3990.4,3990.3,9.96397723]
[1754665235753,1e-08,3990.4,3990.3,13.60541423]
[1754665235958,1e-08,3990.4,3990.3,9.96397723]
[1754665236277,0.04,3991.4,3990.3,9.96397723]
[1754665236278,1e-08,3991.4,3990.8,0.55]
[1754665236466,1e-08,3991.4,3991.3,16.4155048]
[1754665236793,1e-08,3991.4,3991.3,20.4245048]
[1754665236997,1e-08,3991.4,3991.3,36.9017218]
[1754665237196,1e-08,3991.4,3991.3,22.1167008]